fUSD/lending_fUSD_20240212
["ID","MTS","AMOUNT","RATE_DAILY","PERIOD"]
[313884830,1707769886055,-500.0,0.00033972,2]
[313884831,1707769886065,-500.0,0.00033972,2]
[313884832,1707769886074,-500.0,0.00033972,2]
[313884833,1707769886083,-500.0,0.00033972,2]
[313884834,1707769886093,-500.0,0.00033972,2]
[313884835,1707769886102,-500.0,0.00033972,2]
[313884836,1707769886111,-500.0,0.00033972,2]
[313884837,1707769886121,-846.93,0.00033972,2]
[313884838,1707769886130,-500.0,0.00033972,2]
[313884839,1707769886140,-500.0,0.00033972,2]
[313884840,1707769886150,-3071.04,0.00033972,2]
[313884841,1707769886160,-500.0,0.00033972,2]
[313884842,1707769886169,-616.73,0.00033972,2]
[313884843,1707769886179,-269.85395555,0.00033972,2]
[313884844,1707769886188,-500.0,0.00033972,2]
[313884845,1707769886198,-728.9,0.00033972,2]
[313884846,1707769886207,-500.0,0.00033972,2]
[313884847,1707769886218,-500.0,0.00033972,2]
[313884848,1707769886234,-500.0,0.00033972,2]
[313884849,1707769886243,-560.54,0.00033972,2]
[313884850,1707769886253,-500.0,0.00033972,2]
[313884851,1707769886262,-1820.56,0.00033972,2]
[313884852,1707769886272,-743.91,0.00033972,2]
[313884853,1707769886281,-176.55859048,0.00033972,2]
[313884854,1707769886291,-500.0,0.00033972,2]
[313884855,1707769886300,-500.0,0.00033972,2]
[313884856,1707769886309,-500.0,0.00033972,2]
[313884857,1707769886319,-1028.39,0.00033972,2]
[313884858,1707769886329,-735.16,0.00033972,2]
[313884859,1707769886339,-1049.27,0.00033972,2]
[313884860,1707769886348,-4338.57,0.00033972,2]
[313884861,1707769886358,-500.0,0.00033972,2]
[313884862,1707769886367,-500.0,0.00033972,2]
[313884863,1707769886376,-2013.56,0.00033972,2]
[313884864,1707769886385,-500.0,0.00033972,2]
[313884865,1707769886394,-500.0,0.00033972,2]
[313884866,1707769886404,-1012.67,0.00033972,2]
[313884867,1707769886413,-500.0,0.00033972,2]
[313884868,1707769886423,-1445.06,0.00033972,2]
[313884869,1707769886432,-500.0,0.00033972,2]
[313884870,1707769886441,-500.0,0.00033972,2]
[313884871,1707769886450,-1677.14,0.00033972,2]
[313884872,1707769886460,-377.47699275,0.00033972,2]
[313884873,1707769886470,-500.0,0.00033972,2]
[313884874,1707769886480,-951.75,0.00033972,2]
[313884875,1707769886490,-556.37,0.00033972,2]
[313884876,1707769886499,-1575.25,0.00033972,2]
[313884877,1707769886509,-1311.14,0.00033972,2]
[313884878,1707769886520,-517.12,0.00033972,2]
[313884879,1707769886530,-1386.13,0.00033972,2]
[313884880,1707769886540,-500.0,0.00033972,2]
[313884881,1707769886551,-893.85,0.00033972,2]
[313884882,1707769886562,-500.0,0.00033972,2]
[313884883,1707769886573,-1280.91,0.00033972,2]
[313884884,1707769886582,-500.0,0.00033972,2]
[313884885,1707769886591,-174.88347329,0.00033972,2]
[313884886,1707769886733,-500.0,0.00033972,2]
[313884887,1707769886743,-7777.87,0.00033972,2]
[313884888,1707769886753,-501.05,0.00033972,2]
[313884889,1707769886763,-502.28,0.00033972,2]
[313884890,1707769886772,-500.0,0.00033972,2]
[313884891,1707769886781,-814.8,0.00033972,2]
[313884892,1707769886790,-961.32,0.00033972,2]
[313884893,1707769886799,-347.96385222,0.00033972,2]
[313884894,1707769886809,-500.0,0.00033972,2]
[313884895,1707769886818,-500.0,0.00033972,2]
[313884896,1707769886828,-500.0,0.00033972,2]
[313884897,1707769886837,-500.0,0.00033972,2]
[313884898,1707769886847,-551.08,0.00033972,2]
[313884899,1707769886857,-500.0,0.00033972,2]
[313884900,1707769886867,-500.0,0.00033972,2]
[313884901,1707769886876,-500.0,0.00033972,2]
[313884902,1707769886885,-812.86,0.00033972,2]
[313884903,1707769886895,-500.0,0.00033972,2]
[313884904,1707769886904,-500.0,0.00033972,2]
[313884905,1707769886914,-500.0,0.00033972,2]
[313884906,1707769886923,-512.59,0.00033972,2]
[313884907,1707769886933,-1261.01,0.00033972,2]
[313884908,1707769886942,-500.0,0.00033972,2]
[313884909,1707769886951,-5713.47,0.00033972,2]
[313884910,1707769886961,-500.0,0.00033972,2]
[313884911,1707769886970,-500.0,0.00033972,2]
[313884912,1707769886979,-500.0,0.00033972,2]
[313884913,1707769886989,-500.0,0.00033972,2]
[313884914,1707769886998,-500.0,0.00033972,2]
[313884915,1707769887007,-500.0,0.00033972,2]
[313884916,1707769887017,-5782.92,0.00033972,2]
[313884917,1707769887026,-500.0,0.00033972,2]
[313884918,1707769887036,-3592.16,0.00033972,2]
[313884919,1707769887045,-500.0,0.00033972,2]
[313884920,1707769887055,-500.0,0.00033972,2]
[313884921,1707769887064,-1417.96,0.00033972,2]
[313884922,1707769887074,-500.0,0.00033972,2]
[313884923,1707769887083,-1507.74,0.00033972,2]
[313884924,1707769887092,-500.0,0.00033972,2]
[313884925,1707769887102,-500.0,0.00033972,2]
[313884926,1707769887111,-500.0,0.00033972,2]
[313884927,1707769887121,-2719.11,0.00033972,2]
[313884928,1707769887130,-735.15,0.00033972,2]
[313884929,1707769887139,-1563.36,0.00033972,2]
[313884930,1707769887148,-500.0,0.00033972,2]
[313884931,1707769887157,-500.0,0.00033972,2]
[313884932,1707769887167,-500.0,0.00033972,2]
[313884933,1707769887176,-500.0,0.00033972,2]
[313884934,1707769887185,-1284.95,0.00033972,2]
[313884935,1707769887194,-953.13,0.00033972,2]
[313884936,1707769887204,-500.0,0.00033972,2]
[313884937,1707769887213,-500.0,0.00033972,2]
[313884938,1707769887224,-500.0,0.00033972,2]
[313884939,1707769887234,-500.0,0.00033972,2]
[313884940,1707769887244,-500.0,0.00033972,2]
[313884941,1707769887253,-503.01,0.00033972,2]
[313884942,1707769887262,-705.93,0.00033972,2]
[313884943,1707769887272,-500.0,0.00033972,2]
[313884944,1707769887281,-500.0,0.00033972,2]
[313884945,1707769887291,-500.0,0.00033972,2]
[313884946,1707769887300,-2474.64,0.00033972,2]
[313884947,1707769887309,-500.0,0.00033972,2]
[313884948,1707769887319,-500.0,0.00033972,2]
[313884949,1707769887328,-2229.26,0.00033972,2]
[313884950,1707769887338,-500.0,0.00033972,2]
[313884951,1707769887348,-500.0,0.00033972,2]
[313884952,1707769887358,-500.0,0.00033972,2]
[313884953,1707769887368,-500.0,0.00033972,2]
[313884954,1707769887378,-1798.72,0.00033972,2]
[313884955,1707769887388,-1299.67,0.00033972,2]
[313884956,1707769887401,-1347.04,0.00033972,2]
[313884957,1707769887411,-500.0,0.00033972,2]
[313884958,1707769887422,-534.62394574,0.00033972,2]
[313884959,1707769887432,-1180.11,0.00033972,2]
[313884960,1707769887442,-2115.54,0.00033972,2]
[313884961,1707769887453,-513.48,0.00033972,2]
[313884962,1707769887463,-500.0,0.00033972,2]
[313884963,1707769887473,-500.0,0.00033972,2]
[313884964,1707769887482,-500.0,0.00033972,2]
[313884965,1707769887492,-500.0,0.00033972,2]
[313884966,1707769887501,-3264.57,0.00033972,2]
[313884967,1707769887511,-3140.53,0.00033972,2]
[313884968,1707769887520,-511.99,0.00033972,2]
[313884969,1707769887530,-500.0,0.00033972,2]
[313884970,1707769887540,-589.12085068,0.00033972,2]
[313884971,1707769887549,-4051.49,0.00033972,2]
[313884972,1707769887559,-500.0,0.00033972,2]
[313884973,1707769887571,-1799.2,0.00033972,2]
[313884974,1707769887581,-500.0,0.00033972,2]
[313884975,1707769887590,-500.0,0.00033972,2]
[313884976,1707769887599,-500.0,0.00033972,2]
[313884977,1707769887610,-1680.38,0.00033972,2]
[313884978,1707769887619,-500.0,0.00033972,2]
[313884979,1707769887628,-500.0,0.00033972,2]
[313884980,1707769887638,-978.39,0.00033972,2]
[313884981,1707769887648,-500.0,0.00033972,2]
[313884982,1707769887658,-522.7,0.00033972,2]
[313884983,1707769887669,-500.0,0.00033972,2]
[313884984,1707769887678,-325.24,0.00033972,2]
[313884985,1707769887688,-4240.45,0.00033972,2]
[313884986,1707769887697,-500.0,0.00033972,2]
[313884987,1707769887706,-494.77414686,0.00033972,2]
[313884988,1707769887718,-500.0,0.00033972,2]
[313884989,1707769887728,-200.69933272,0.00033972,2]
[313884990,1707769887738,-573.56,0.00033972,2]
[313884991,1707769887747,-500.0,0.00033972,2]
[313884992,1707769887758,-2397.55,0.00033972,2]
[313884993,1707769887767,-500.0,0.00033972,2]
[313884994,1707769887777,-500.0,0.00033972,2]
[313884995,1707769887786,-3239.43,0.00033972,2]
[313884996,1707769887796,-8108.7993146,0.00033976,2]
[313884997,1707769887805,-1642.2991389,0.00033976,2]
[313884998,1707769887814,-919.9927408,0.00033976,2]
[313884999,1707769887823,-5000.0,0.0003398,2]
[313885000,1707769887832,-500.0,0.00033987,2]
[313885001,1707769887842,-2877.56308852,0.0003399,2]
[313885002,1707769887852,-36365.46449071,0.00033997,2]
[313885003,1707769887862,-4769.54458275,0.00033999,2]
[313885004,1707769887871,-1847.1907774,0.00033999,2]
[313885005,1707769887880,-4431.41292268,0.00033999,2]
[313885006,1707769887889,-7488.3827928,0.00033999,2]
[313885007,1707769887899,-50000.0,0.00034,4]
[313885008,1707769887908,-155.0,0.00034,4]
[313885009,1707769887917,-172.37660514,0.00034,5]
[313885010,1707769887926,-767.48185692,0.00034,4]
[313885011,1707769887936,-250.0,0.00034,120]
[313885012,1707769887945,-10000.0,0.00034,4]
[313885013,1707769887956,-150.0,0.00034,113]
[313885014,1707769887966,-300.0,0.00034,35]
[313885015,1707769887975,-1000.0,0.00034,50]
[313885016,1707769887985,-151.0,0.00034,7]
[313885017,1707769887994,-154.16,0.00034005,2]
[313885018,1707769888004,-1000.0,0.00034042,2]
[313885019,1707769888013,-500.0,0.00034068,2]
[313885020,1707769888022,-500.0,0.00034068,2]
[313885021,1707769888032,-500.0,0.00034068,2]
[313885022,1707769888041,-373.4,0.00034068,2]
[313885023,1707769888050,-659.34,0.00034133,2]
[313885024,1707769888060,-1003.0,0.00034148,2]
[313885025,1707769888070,-237.0,0.00034148,2]
[313885026,1707769888079,-598.0,0.00034148,2]
[313885027,1707769888087,-429.0,0.00034148,2]
[313885028,1707769888096,-1947.0,0.00034148,2]
[313885029,1707769888105,-1138.0,0.00034148,2]
[313885030,1707769888114,-321.0,0.00034148,2]
[313885031,1707769888124,-858.0,0.00034148,2]
[313885032,1707769888133,-150.0,0.00034148,2]
[313885033,1707769888142,-343.0,0.00034148,2]
[313885034,1707769888151,-2225.239,0.00034148,2]
[313885035,1707769888161,-2287.0,0.00034148,2]
[313885036,1707769888172,-7409.0,0.00034148,2]
[313885037,1707769888183,-19827.0,0.00034148,2]
[313885038,1707769888192,-2924.0,0.00034148,2]
[313885039,1707769888202,-525.773,0.00034148,2]
[313885040,1707769888211,-397.0,0.00034148,2]
[313885041,1707769888220,-8156.0,0.00034148,2]
[313885042,1707769888230,-1036.0,0.00034148,2]
[313885043,1707769888242,-952.0,0.00034148,2]
[313885044,1707769888252,-2832.0,0.00034148,2]
[313885045,1707769888265,-841.0,0.00034148,2]
[313885046,1707769888274,-156.497,0.00034148,2]
[313885047,1707769888283,-1863.0,0.00034148,2]
[313885048,1707769888292,-205.71425931,0.00034168,7]
[313885049,1707769888301,-500.0,0.00034168,10]
[313885050,1707769888311,-200.0,0.000342,7]
[313885051,1707769888320,-8000.0,0.000342,2]
[313885052,1707769888328,-29344.5598484,0.000342,2]
[313885053,1707769888337,-1938.2603727,0.00034223,2]
[313885054,1707769888347,-934.5185116,0.00034223,2]
[313885055,1707769888356,-681.0697815,0.00034223,2]
[313885056,1707769888365,-80366.6778333,0.00034223,2]
[313885057,1707769888375,-1000.0,0.00034226,7]
[313885058,1707769888384,-1000.0,0.00034226,7]
[313885059,1707769888393,-1000.0,0.00034226,7]
[313885060,1707769888401,-1000.0,0.00034226,7]
[313885061,1707769888410,-1000.0,0.00034226,7]
[313885062,1707769888420,-1000.0,0.00034226,7]
[313885063,1707769888429,-500.0,0.00034246,2]
[313885064,1707769888438,-385.00492573,0.00034246,2]
[313885065,1707769888448,-224.18443867,0.00034246,2]
[313885066,1707769888460,-500.0,0.00034246,2]
[313885067,1707769888476,-500.0,0.00034246,2]
[313885068,1707769888484,-500.0,0.00034246,2]
[313885069,1707769888493,-500.0,0.00034246,2]
[313885070,1707769888502,-500.0,0.00034246,2]
[313885071,1707769888511,-500.0,0.00034246,2]
[313885072,1707769888520,-500.0,0.00034246,2]
[313885073,1707769888529,-459.44654198,0.00034246,2]
[313885074,1707769888538,-500.0,0.00034246,2]
[313885075,1707769888547,-500.0,0.00034246,2]
[313885076,1707769888556,-500.0,0.00034246,2]
[313885077,1707769888569,-500.0,0.00034246,2]
[313885078,1707769888578,-500.0,0.00034246,2]
[313885079,1707769888588,-500.0,0.00034246,2]
[313885080,1707769888597,-500.0,0.00034246,2]
[313885081,1707769888606,-500.0,0.00034246,2]
[313885082,1707769888615,-500.0,0.00034246,2]
[313885083,1707769888624,-500.0,0.00034246,2]
[313885084,1707769888633,-500.0,0.00034246,2]
[313885085,1707769888643,-500.0,0.00034246,2]
[313885086,1707769888652,-500.0,0.00034246,2]
[313885087,1707769888661,-500.0,0.00034246,2]
[313885088,1707769888672,-500.0,0.00034246,2]
[313885089,1707769888681,-500.0,0.00034246,2]
[313885090,1707769888690,-500.0,0.00034246,2]
[313885091,1707769888699,-500.0,0.00034246,2]
[313885092,1707769888708,-500.0,0.00034246,2]
[313885093,1707769888717,-406.18,0.00034246,2]
[313885094,1707769888726,-252.35193178,0.00034246,2]
[313885095,1707769888735,-500.0,0.00034246,2]
[313885096,1707769888745,-500.0,0.00034246,2]
[313885097,1707769888755,-500.0,0.00034246,2]
[313885098,1707769888764,-500.0,0.00034246,2]
[313885099,1707769888775,-500.0,0.00034246,2]
[313885100,1707769888785,-500.0,0.00034246,2]
[313885101,1707769888795,-209.86488203,0.00034246,2]
[313885102,1707769888804,-322.86727676,0.00034246,2]
[313885103,1707769888814,-205.8082515,0.00034246,2]
[313885104,1707769888823,-291.97357647,0.00034246,2]
[313885105,1707769888961,-500.0,0.00034246,2]
[313885106,1707769888971,-500.0,0.00034246,2]
[313885107,1707769888980,-500.0,0.00034246,2]
[313885108,1707769888989,-414.98,0.00034246,2]
[313885109,1707769888998,-500.0,0.00034246,2]
[313885110,1707769889008,-500.0,0.00034246,2]
[313885111,1707769889017,-500.0,0.00034246,2]
[313885112,1707769889029,-500.0,0.00034246,2]
[313885113,1707769889038,-639.18,0.00034246,2]
[313885114,1707769889046,-500.0,0.00034246,2]
[313885115,1707769889055,-500.0,0.00034246,2]
[313885116,1707769889064,-500.0,0.00034246,2]
[313885117,1707769889073,-500.0,0.00034246,2]
[313885118,1707769889082,-500.0,0.00034246,2]
[313885119,1707769889090,-311.66510567,0.00034246,2]
[313885120,1707769889099,-500.0,0.00034246,2]
[313885121,1707769889109,-500.0,0.00034246,2]
[313885122,1707769889118,-500.0,0.00034246,2]
[313885123,1707769889127,-500.0,0.00034246,7]
[313885124,1707769889136,-500.0,0.00034246,2]
[313885125,1707769889145,-500.0,0.00034246,2]
[313885126,1707769889154,-500.0,0.00034246,2]
[313885127,1707769889163,-500.0,0.00034246,2]
[313885128,1707769889173,-500.0,0.00034246,2]
[313885129,1707769889182,-500.0,0.00034246,2]
[313885130,1707769889191,-500.0,0.00034246,2]
[313885131,1707769889200,-208.95,0.00034246,2]
[313885132,1707769889209,-966.32,0.00034246,2]
[313885133,1707769889218,-500.0,0.00034246,2]
[313885134,1707769889227,-500.0,0.00034246,2]
[313885135,1707769889236,-500.0,0.00034246,2]
[313885136,1707769889245,-500.0,0.00034246,2]
[313885137,1707769889254,-500.0,0.00034246,2]
[313885138,1707769889263,-500.0,0.00034246,2]
[313885139,1707769889272,-500.0,0.00034246,2]
[313885140,1707769889281,-500.0,0.00034246,2]
[313885141,1707769889290,-500.0,0.00034246,2]
[313885142,1707769889299,-807.54,0.00034246,2]
[313885143,1707769889308,-500.0,0.00034246,2]
[313885144,1707769889317,-500.0,0.00034246,2]
[313885145,1707769889326,-500.0,0.00034246,2]
[313885146,1707769889335,-500.0,0.00034246,2]
[313885147,1707769889344,-500.0,0.00034246,2]
[313885148,1707769889354,-500.0,0.00034246,2]
[313885149,1707769889363,-509.91,0.00034246,2]
[313885150,1707769889372,-500.0,0.00034246,2]
[313885151,1707769889381,-500.0,0.00034246,2]
[313885152,1707769889390,-500.0,0.00034246,2]
[313885153,1707769889399,-500.0,0.00034246,2]
[313885154,1707769889408,-500.0,0.00034246,2]
[313885155,1707769889418,-519.0,0.00034246,2]
[313885156,1707769889427,-500.0,0.00034246,2]
[313885157,1707769889436,-500.0,0.00034246,2]
[313885158,1707769889445,-500.0,0.00034246,2]
[313885159,1707769889455,-602.61,0.00034246,2]
[313885160,1707769889464,-500.22,0.00034246,2]
[313885161,1707769889474,-500.0,0.00034246,2]
[313885162,1707769889483,-210.24,0.00034246,2]
[313885163,1707769889492,-261.21,0.00034246,2]
[313885164,1707769889501,-500.0,0.00034246,2]
[313885165,1707769889511,-500.0,0.00034246,2]
[313885166,1707769889520,-500.0,0.00034246,2]
[313885167,1707769889529,-500.0,0.00034246,2]
[313885168,1707769889538,-580.77,0.00034246,2]
[313885169,1707769889547,-500.0,0.00034246,2]
[313885170,1707769889557,-500.0,0.00034246,2]
[313885171,1707769889570,-500.0,0.00034246,2]
[313885172,1707769889579,-952.06,0.00034246,2]
[313885173,1707769889588,-500.0,0.00034246,2]
[313885174,1707769889598,-500.0,0.00034246,2]
[313885175,1707769889607,-500.0,0.00034246,2]
[313885176,1707769889616,-500.0,0.00034246,2]
[313885177,1707769889626,-500.0,0.00034246,2]
[313885178,1707769889635,-538.47,0.00034246,2]
[313885179,1707769889646,-500.0,0.00034246,2]
[313885180,1707769889656,-500.0,0.00034246,2]
[313885181,1707769889665,-500.0,0.00034246,2]
[313885182,1707769889674,-500.0,0.00034246,2]
[313885183,1707769889683,-1235.07,0.00034246,2]
[313885184,1707769889692,-500.0,0.00034246,2]
[313885185,1707769889701,-362.01839403,0.00034246,2]
[313885186,1707769889710,-500.0,0.00034246,2]
[313885187,1707769889719,-191.9513625,0.00034246,2]
[313885188,1707769889729,-1500.0,0.00034246,5]
[313885189,1707769889738,-500.0,0.00034246,2]
[313885190,1707769889747,-500.0,0.00034246,2]
[313885191,1707769889756,-433.62176903,0.00034246,2]
[313885192,1707769889765,-351.25439193,0.00034246,2]
[313885193,1707769889775,-500.0,0.00034246,2]
[313885194,1707769889784,-500.0,0.00034246,2]
[313885195,1707769889793,-500.0,0.00034246,2]
[313885196,1707769889802,-500.0,0.00034246,2]
[313885197,1707769889812,-313.62363597,0.00034246,2]
[313885198,1707769889821,-500.0,0.00034246,2]
[313885199,1707769889830,-1080.75,0.00034246,2]
[313885200,1707769889840,-500.0,0.00034246,2]
[313885201,1707769889849,-500.0,0.00034246,2]
[313885202,1707769889858,-576.97,0.00034246,2]
[313885203,1707769889868,-728.15,0.00034246,2]
[313885204,1707769889877,-500.0,0.00034246,2]
[313885205,1707769889886,-796.14,0.00034246,2]
[313885206,1707769889895,-588.98,0.00034246,2]
[313885207,1707769889904,-500.0,0.00034246,2]
[313885208,1707769889913,-500.0,0.00034246,2]
[313885209,1707769889922,-5409.76,0.00034246,2]
[313885210,1707769889932,-500.0,0.00034246,2]
[313885211,1707769889941,-500.0,0.00034246,2]
[313885212,1707769889951,-500.0,0.00034246,2]
[313885213,1707769889960,-500.0,0.00034246,2]
[313885214,1707769889969,-500.0,0.00034246,2]
[313885215,1707769889978,-500.0,0.00034246,2]
[313885216,1707769889988,-500.0,0.00034246,2]
[313885217,1707769889997,-1331.32,0.00034246,2]
[313885218,1707769890006,-917.05,0.00034246,2]
[313885219,1707769890015,-500.0,0.00034246,2]
[313885220,1707769890024,-3280.01,0.00034246,2]
[313885221,1707769890033,-9977.66,0.00034246,2]
[313885222,1707769890043,-500.0,0.00034246,2]
[313885223,1707769890052,-500.0,0.00034246,2]
[313885224,1707769890062,-4143.77,0.00034246,2]
[313885225,1707769890071,-5964.37,0.00034246,2]
[313885226,1707769890081,-500.0,0.00034246,2]
[313885227,1707769890090,-500.0,0.00034246,2]
[313885228,1707769890099,-695.09,0.00034246,2]
[313885229,1707769890109,-500.0,0.00034246,2]
[313885230,1707769890118,-561.48,0.00034246,2]
[313885231,1707769890127,-500.0,0.00034246,2]
[313885232,1707769890137,-843.63,0.00034246,2]
[313885233,1707769890146,-500.0,0.00034246,2]
[313885234,1707769890155,-500.0,0.00034246,2]
[313885235,1707769890165,-984.81,0.00034246,2]
[313885236,1707769890174,-500.0,0.00034246,2]
[313885237,1707769890183,-500.0,0.00034246,2]
[313885238,1707769890192,-500.0,0.00034246,2]
[313885239,1707769890201,-500.0,0.00034246,2]
[313885240,1707769890210,-1158.95,0.00034246,2]
[313885241,1707769890219,-500.0,0.00034246,2]
[313885242,1707769890228,-500.0,0.00034246,2]
[313885243,1707769890237,-500.0,0.00034246,2]
[313885244,1707769890247,-2406.89,0.00034246,2]
[313885245,1707769890256,-500.0,0.00034246,2]
[313885246,1707769890265,-500.0,0.00034246,2]
[313885247,1707769890274,-578.56,0.00034246,2]
[313885248,1707769890283,-500.0,0.00034246,2]
[313885249,1707769890293,-500.0,0.00034246,2]
[313885250,1707769890304,-500.0,0.00034246,2]
[313885251,1707769890313,-500.0,0.00034246,2]
[313885252,1707769890322,-500.0,0.00034246,2]
[313885253,1707769890332,-586.24,0.00034246,2]
[313885254,1707769890341,-500.0,0.00034246,2]
[313885255,1707769890351,-819.76,0.00034246,2]
[313885256,1707769890360,-500.0,0.00034246,2]
[313885257,1707769890371,-500.0,0.00034246,2]
[313885258,1707769890380,-500.0,0.00034246,2]
[313885259,1707769890390,-500.0,0.00034246,2]
[313885260,1707769890400,-1375.77,0.00034246,2]
[313885261,1707769890409,-4244.4,0.00034246,2]
[313885262,1707769890420,-500.0,0.00034246,2]
[313885263,1707769890430,-500.0,0.00034246,2]
[313885264,1707769890441,-500.0,0.00034246,2]
[313885265,1707769890451,-500.0,0.00034246,2]
[313885266,1707769890460,-500.0,0.00034246,2]
[313885267,1707769890469,-500.0,0.00034246,2]
[313885268,1707769890479,-500.0,0.00034246,2]
[313885269,1707769890489,-846.93,0.00034246,2]
[313885270,1707769890498,-212.7,0.00034246,2]
[313885271,1707769890507,-500.0,0.00034246,2]
[313885272,1707769890517,-3071.04,0.00034246,2]
[313885273,1707769890530,-500.0,0.00034246,2]
[313885274,1707769890539,-616.73,0.00034246,2]
[313885275,1707769890549,-500.0,0.00034246,2]
[313885276,1707769890561,-728.9,0.00034246,2]
[313885277,1707769890572,-500.0,0.00034246,2]
[313885278,1707769890582,-500.0,0.00034246,2]
[313885279,1707769890591,-500.0,0.00034246,2]
[313885280,1707769890601,-560.54,0.00034246,2]
[313885281,1707769890611,-1820.56,0.00034246,2]
[313885282,1707769890620,-500.0,0.00034246,2]
[313885283,1707769890629,-743.91,0.00034246,2]
[313885284,1707769890640,-500.0,0.00034246,2]
[313885285,1707769890651,-500.0,0.00034246,2]
[313885286,1707769890661,-152.61,0.00034246,2]
[313885287,1707769890673,-1028.39,0.00034246,2]
[313885288,1707769890682,-735.16,0.00034246,2]
[313885289,1707769890691,-1049.27,0.00034246,2]
[313885290,1707769890700,-4338.57,0.00034246,2]
[313885291,1707769890710,-500.0,0.00034246,2]
[313885292,1707769890719,-500.0,0.00034246,2]
[313885293,1707769890728,-2013.56,0.00034246,2]
[313885294,1707769890738,-500.0,0.00034246,2]
[313885295,1707769890747,-471.36,0.00034246,2]
[313885296,1707769890757,-1012.67,0.00034246,2]
[313885297,1707769890767,-500.0,0.00034246,2]
[313885298,1707769890778,-1445.06,0.00034246,2]
[313885299,1707769890791,-500.0,0.00034246,2]
[313885300,1707769890800,-1677.14,0.00034246,2]
[313885301,1707769890809,-500.0,0.00034246,2]
[313885302,1707769890819,-621.36,0.00034246,2]
[313885303,1707769890828,-951.75,0.00034246,2]
[313885304,1707769890838,-1575.25,0.00034246,2]
[313885305,1707769890848,-1311.14,0.00034246,2]
[313885306,1707769890857,-1386.13,0.00034246,2]
[313885307,1707769890990,-500.0,0.00034246,2]
[313885308,1707769891000,-893.85,0.00034246,2]
[313885309,1707769891009,-500.0,0.00034246,2]
[313885310,1707769891018,-1280.91,0.00034246,2]
[313885311,1707769891027,-500.0,0.00034246,2]
[313885312,1707769891037,-500.0,0.00034246,2]
[313885313,1707769891047,-7777.87,0.00034246,2]
[313885314,1707769891056,-501.05,0.00034246,2]
[313885315,1707769891065,-502.28,0.00034246,2]
[313885316,1707769891074,-500.0,0.00034246,2]
[313885317,1707769891084,-814.8,0.00034246,2]
[313885318,1707769891093,-961.32,0.00034246,2]
[313885319,1707769891103,-500.0,0.00034246,2]
[313885320,1707769891112,-500.0,0.00034246,2]
[313885321,1707769891122,-265.06122326,0.00034246,2]
[313885322,1707769891131,-500.0,0.00034246,2]
[313885323,1707769891140,-551.08,0.00034246,2]
[313885324,1707769891149,-500.0,0.00034246,2]
[313885325,1707769891159,-500.0,0.00034246,2]
[313885326,1707769891170,-500.0,0.00034246,2]
[313885327,1707769891179,-812.86,0.00034246,2]
[313885328,1707769891190,-409.63553218,0.00034246,2]
[313885329,1707769891199,-500.0,0.00034246,2]